bitfinex/quotes_SOLUSD_20250531
["timestamp","ask_amount","ask_price","bid_price","bid_amount"]
[1748662690797,0.898379,153.9,153.86,29.88964886]
[1748662690985,0.898379,153.9,153.87,22.29396716]
[1748662691184,20.09859902,153.92,153.88,6.6285]
[1748662691596,22.29396716,153.93,153.88,6.6285]
[1748662692901,6.49688149,153.92,153.88,6.6285]
[1748662693702,6.49688149,153.92,153.88,28.92246716]
[1748662693905,28.79084865,153.92,153.88,6.6285]
[1748662694614,138.5668,154.01,153.95,26.0]
[1748662694817,181.0068,154.06,153.94,11.72]
[1748662695110,22.29396716,154.02,153.97,22.29396716]
[1748662695420,22.29396716,154.03,153.97,22.29396716]
[1748662695785,22.29396716,154.03,153.98,5.0588]
[1748662695980,22.29396716,154.03,153.98,27.35276716]
[1748662696182,138.5668,154.06,153.98,5.0588]
[1748662696489,22.29396716,154.04,153.99,22.29396716]
[1748662697407,145.05781985,154.06,153.99,22.29396716]
[1748662697706,22.29396716,154.04,153.99,22.29396716]
[1748662697907,33.38676796,154.04,153.99,33.38676796]
[1748662698115,145.05781985,154.06,153.98,38.44556796]
[1748662698320,145.05781985,154.06,153.98,5.0588]
[1748662698707,145.05781985,154.06,153.98,38.44556796]
[1748662699101,145.05781985,154.06,153.98,5.0588]
[1748662699297,145.05781985,154.06,153.98,38.44556796]
[1748662699507,161.2852637,154.06,153.98,5.0588]
[1748662699714,161.2852637,154.06,153.98,38.44556796]
[1748662700017,33.38676796,154.04,153.99,33.38676796]
[1748662700190,33.38676796,154.04,153.98,38.44556796]
[1748662700396,33.38676796,154.03,153.98,38.44556796]
[1748662701526,39.87935584,154.03,153.98,38.44556796]
[1748662702227,33.38676796,154.0,153.98,5.0588]
[1748662702417,33.38676796,153.99,153.94,16.7811]
[1748662702611,33.38676796,153.98,153.94,16.7811]
[1748662702913,33.38676796,153.99,153.94,16.7811]
[1748662703219,33.38676796,153.99,153.94,5.0611]
[1748662703796,6.49434991,153.98,153.94,5.0611]
[1748662704622,33.38676796,153.96,153.91,33.38676796]
[1748662704943,33.38676796,153.94,153.9,5.0611]
[1748662705243,33.38676796,153.93,153.9,5.0611]
[1748662705745,33.38676796,153.91,153.85,5.0611]
[1748662705923,33.38676796,153.9,153.86,33.38676796]
[1748662706234,6.49746145,153.91,153.86,33.38676796]
[1748662706235,39.88422941,153.91,153.86,33.38676796]
[1748662706421,33.38676796,153.89,153.85,33.38676796]
[1748662706900,6.49746145,153.91,153.84,11.7]
[1748662707104,33.38676796,153.89,153.85,33.38676796]
[1748662707623,33.38676796,153.9,153.85,33.38676796]
[1748662707838,39.8845009,153.9,153.85,33.38676796]
[1748662709118,39.8845009,153.9,153.86,33.38676796]
[1748662709450,33.38676796,153.91,153.86,33.38676796]
[1748662709609,6.49561545,153.95,153.89,33.38676796]
[1748662709809,33.38676796,153.94,153.89,33.38676796]
[1748662710118,33.38676796,153.94,153.88,0.28432314]
[1748662710427,33.38676796,153.94,153.89,33.38676796]
[1748662710816,39.88285388,153.94,153.89,33.38676796]
[1748662712233,33.38676796,153.93,153.88,59.38676796]
[1748662712608,33.38676796,153.93,153.88,33.38676796]
[1748662713017,39.88285388,153.94,153.89,33.38676796]
[1748662714113,39.88206546,153.96,153.91,33.38676796]
[1748662714444,6.4952975,153.96,153.91,33.38676796]
[1748662714812,39.88206546,153.96,153.91,33.38676796]
[1748662715511,39.88206546,153.96,153.9,38.44786796]
[1748662716728,33.38676796,153.93,153.88,59.38676796]
[1748662716907,6.4952975,153.96,153.88,59.38676796]
[1748662717108,22.73328139,153.96,153.88,59.38676796]
[1748662717312,22.73328139,153.96,153.89,33.38676796]
[1748662718245,16.23798389,153.96,153.89,33.38676796]
[1748662719147,33.38676796,153.9,153.86,11.72]
[1748662719948,22.2983149,153.9,153.86,11.72]
[1748662720245,6.49772579,153.9,153.86,11.72]
[1748662721351,28.79573266,153.91,153.86,11.72]
[1748662721944,28.79573266,153.91,153.85,22.2983149]
[1748662722240,22.2983149,153.9,153.84,54.79850413]
[1748662722756,22.2983149,153.9,153.85,22.2983149]
[1748662723352,28.79625642,153.9,153.85,22.2983149]
[1748662724534,28.79565664,153.91,153.85,28.79804205]
[1748662724740,22.2983149,153.92,153.87,22.2983149]
[1748662725249,138.5668,153.93,153.88,22.2983149]
[1748662725450,160.8651149,153.93,153.88,22.2983149]
[1748662725642,160.8651149,153.93,153.87,6.49869747]
[1748662725844,160.8651149,153.93,153.87,28.79701237]
[1748662726835,22.2983149,153.92,153.87,28.79701237]
[1748662727329,6.4969184,153.92,153.86,6.49930657]
[1748662727529,28.7952333,153.92,153.87,22.2983149]
[1748662727752,167.36166203,153.93,153.87,22.2983149]
[1748662729056,167.36166203,153.93,153.87,28.79724179]
[1748662729261,138.5668,153.93,153.88,22.2983149]
[1748662729449,160.8651149,153.93,153.88,22.2983149]
[1748662729649,167.36157457,153.93,153.88,22.2983149]
[1748662729845,22.2983149,153.94,153.89,22.2983149]
[1748662730750,22.2983149,153.95,153.9,22.2983149]
[1748662731987,28.79390823,153.96,153.9,22.2983149]
[1748662732734,1.6548,154.06,153.91,47.3811]
[1748662732935,22.2983149,154.0,153.95,22.2983149]
[1748662733154,22.2983149,154.0,153.92,60.69688149]
[1748662733155,22.2983149,153.99,153.92,60.69688149]
[1748662733371,22.2983149,154.0,153.94,22.2983149]
[1748662733735,22.2983149,154.0,153.95,22.2983149]
[1748662734560,42.3,154.03,153.93,0.28432314]
[1748662734760,42.3,154.03,153.95,22.2983149]
[1748662734761,22.2983149,154.0,153.95,22.2983149]
[1748662735261,6.49331466,154.01,153.95,28.79379882]
[1748662735466,28.79162956,154.01,153.95,28.79379882]
[1748662736449,22.2983149,154.0,153.95,28.79379882]
[1748662739969,22.2983149,154.0,153.92,70.72652688]
[1748662739970,22.2983149,154.02,153.96,22.2983149]
[1748662740161,28.79066717,154.03,153.97,22.2983149]
[1748662740858,22.2983149,154.03,153.97,22.2983149]
[1748662741269,28.79061139,154.03,153.97,22.2983149]
[1748662741451,22.2983149,154.02,153.97,22.2983149]
[1748662741657,22.2983149,154.01,153.94,0.28432314]
[1748662741858,22.2983149,154.01,153.96,22.2983149]
[1748662742251,28.79141445,154.01,153.96,22.2983149]
[1748662742466,22.2983149,153.99,153.92,11.9]
[1748662742659,22.2983149,153.97,153.92,34.1983149]
[1748662742856,22.2983149,153.93,153.87,11.9]
[1748662743062,26.0,153.97,153.84,35.74763616]
[1748662743063,22.2983149,153.91,153.85,22.2983149]
[1748662743671,22.2983149,153.92,153.86,22.2983149]
[1748662743864,22.2983149,153.91,153.86,22.2983149]
[1748662744065,28.79609622,153.9,153.85,22.2983149]
[1748662744462,28.79569933,153.91,153.86,22.2983149]
[1748662745347,22.2983149,153.88,153.82,11.9]
[1748662745543,6.49738443,153.91,153.84,22.2983149]
[1748662745761,6.49738443,153.91,153.82,18.40109715]
[1748662745762,22.2983149,153.9,153.85,22.2983149]
[1748662745979,39.94445235,153.91,153.85,39.94685963]
[1748662746164,39.94445235,153.91,153.85,33.44706792]
[1748662746557,33.44706792,153.9,153.85,33.44706792]
[1748662746877,39.94445235,153.91,153.85,39.94675104]
[1748662747270,39.94445235,153.91,153.85,33.44706792]
[1748662747475,33.44706792,153.9,153.85,33.44706792]
[1748662747854,33.44706792,153.9,153.84,6.50015208]
[1748662748161,33.44706792,153.88,153.82,11.9]
[1748662748359,33.44706792,153.87,153.82,45.34706792]
[1748662748662,33.44706792,153.87,153.82,11.9]
[1748662748878,33.44706792,153.88,153.83,33.44706792]
[1748662749666,33.44706792,153.87,153.82,45.34706792]
[1748662750066,39.94594965,153.88,153.82,45.34706792]
[1748662751070,33.44706792,153.87,153.82,45.34706792]
[1748662751358,39.94634418,153.87,153.82,45.34706792]
[1748662751863,33.44706792,153.89,153.82,11.9]
[1748662752176,6.49772579,153.9,153.81,6.50142812]
[1748662752177,138.5668,153.88,153.81,33.44706792]
[1748662752380,33.44706792,153.85,153.8,33.44706792]
[1748662752674,33.44706792,153.86,153.8,33.44706792]
[1748662752882,33.44706792,153.85,153.79,26.0]
[1748662753064,33.44706792,153.85,153.77,12.18432314]
[1748662753261,33.44706792,153.83,153.78,33.44706792]
[1748662753758,6.50026001,153.84,153.79,33.44706792]
[1748662753978,35.09506792,153.85,153.81,33.44706792]
[1748662753979,1.648,153.85,153.81,33.44706792]
[1748662754369,1.648,153.85,153.82,33.44706792]
[1748662754860,6.49911864,153.87,153.83,33.44706792]
[1748662755364,178.51255197,153.88,153.83,33.44706792]
[1748662756377,145.06548405,153.88,153.83,33.44706792]
[1748662756579,178.51255197,153.88,153.83,33.44706792]
[1748662757480,161.31190983,153.88,153.79,26.0]
[1748662757785,33.44706792,153.86,153.8,33.44706792]
[1748662758388,39.94680066,153.86,153.81,33.44706792]
[1748662759580,138.5668,153.88,153.82,33.44706792]
[1748662759581,39.94612584,153.87,153.82,33.44706792]
[1748662759887,6.49905792,153.87,153.82,33.44706792]
[1748662760187,178.51256721,153.88,153.83,33.44706792]
[1748662760687,33.44706792,153.87,153.81,33.44706792]
[1748662761185,33.44706792,153.87,153.82,33.44706792]
[1748662762271,39.94636572,153.87,153.81,33.44706792]
[1748662762582,39.94636572,153.87,153.82,33.44706792]
[1748662762891,6.4992978,153.87,153.82,33.44706792]
[1748662763464,39.94636572,153.87,153.82,33.44706792]
[1748662763775,145.06542006,153.88,153.8,32.50182474]
[1748662763977,33.44706792,153.88,153.83,33.44706792]
[1748662765292,39.94575121,153.88,153.83,33.44706792]
[1748662765595,33.44706792,153.87,153.82,33.44706792]
[1748662766123,22.3074322,153.87,153.82,22.3074322]
[1748662767079,22.3074322,153.86,153.81,28.80889001]
[1748662767383,22.3074322,153.87,153.81,28.80889001]
[1748662767590,22.3074322,153.87,153.82,22.3074322]
[1748662767781,28.80611549,153.88,153.83,22.3074322]
[1748662767967,1.648,153.89,153.84,22.3074322]
[1748662768584,1.648,153.89,153.85,22.3074322]
[1748662768776,28.80509271,153.91,153.86,22.3074322]
[1748662768972,24.63371954,153.92,153.87,22.3074322]
[1748662769312,22.3074322,153.91,153.84,26.0]
[1748662769476,22.3074322,153.9,153.85,22.3074322]
[1748662769810,22.3074322,153.89,153.83,22.3074322]
[1748662770178,22.3074322,153.89,153.84,22.3074322]
[1748662770789,28.8059243,153.89,153.84,22.3074322]
[1748662771399,6.4984921,153.89,153.85,22.3074322]
[1748662773998,6.4984921,153.89,153.84,22.3074322]
[1748662774186,28.8059243,153.89,153.84,22.3074322]
[1748662774501,6.4984921,153.89,153.84,22.3074322]
[1748662775888,6.4984921,153.89,153.82,6.50096298]
[1748662776095,28.8059243,153.89,153.84,22.3074322]
[1748662776698,22.3074322,153.9,153.84,28.80762973]
[1748662777090,22.3074322,153.9,153.84,22.3074322]
[1748662777491,22.3074322,153.9,153.84,28.80768796]
[1748662777706,22.3074322,153.9,153.85,22.3074322]
[1748662777906,28.80473581,153.91,153.86,22.3074322]
[1748662778089,22.3074322,153.9,153.85,22.3074322]
[1748662779205,28.80526604,153.9,153.85,22.3074322]
[1748662779405,28.80526604,153.9,153.85,28.80722206]
[1748662779583,28.80526604,153.9,153.85,6.49978986]
[1748662779789,28.80526604,153.9,153.85,22.3074322]
[1748662780520,6.49783384,153.9,153.85,22.3074322]
[1748662780701,28.80487893,153.91,153.85,22.3074322]
[1748662781117,28.80487893,153.91,153.86,22.3074322]
[1748662782490,6.49744673,153.91,153.86,22.3074322]
[1748662782818,140.0949,153.93,153.89,22.3074322]
[1748662782988,138.5668,153.93,153.9,22.3074322]
[1748662783419,138.5668,153.93,153.86,6.49933637]
[1748662783420,138.5668,153.93,153.86,32.49933637]
[1748662783592,138.5668,153.93,153.89,22.3074322]
[1748662784317,14.77353087,153.96,153.92,22.3074322]
[1748662784492,14.77353087,153.96,153.91,22.3074322]
[1748662784797,37.08096307,153.96,153.91,22.3074322]
[1748662786011,8.2782,153.96,153.91,28.8046062]
[1748662786211,8.2782,153.96,153.92,22.3074322]
[1748662786723,138.5668,153.97,153.94,22.3074322]
[1748662787300,138.5668,153.97,153.93,22.3074322]
[1748662787704,138.5668,153.97,153.94,22.3074322]
[1748662787902,145.06161707,153.97,153.94,22.3074322]
[1748662788218,167.36904927,153.97,153.92,22.3074322]
[1748662789215,145.06161707,153.97,153.92,22.3074322]
[1748662790007,145.06161707,153.97,153.93,22.3074322]
[1748662790189,145.06172772,153.97,153.94,22.3074322]
[1748662790899,145.06172772,153.97,153.93,22.3074322]
[1748662792039,145.06172772,153.97,153.92,22.3074322]
[1748662792524,145.06172772,153.97,153.9,6.49772244]
[1748662792822,167.36915992,153.97,153.92,22.3074322]
[1748662793392,145.06172772,153.97,153.92,22.3074322]
[1748662794411,145.06172772,153.97,153.93,22.3074322]
[1748662795910,145.06157953,153.97,153.93,22.3074322]
[1748662798117,138.5668,153.97,153.94,22.3074322]
[1748662799203,145.06163588,153.97,153.93,22.3074322]
[1748662800521,145.06161209,153.97,153.93,22.3074322]
[1748662801038,22.3074322,153.94,153.89,22.3074322]
[1748662801341,22.3074322,153.95,153.9,22.3074322]
[1748662801503,145.06161209,153.97,153.92,22.3074322]
[1748662801705,8.1378,154.0,153.95,22.3074322]
[1748662801935,1.6652,154.0,153.96,22.3074322]
[1748662802125,145.05981557,154.02,153.97,22.3074322]
[1748662802126,6.49301557,154.02,153.97,22.3074322]
[1748662802324,6.49301557,154.02,153.98,22.3074322]
[1748662802531,53.87889221,154.04,153.98,22.3074322]
[1748662802824,14.65990829,154.04,153.99,22.3074322]
[1748662803030,1.5394,154.04,154.0,22.3074322]
[1748662803737,6.49110582,154.06,154.01,22.3074322]
[1748662804235,6.6286,154.08,154.02,0.28432314]
[1748662804424,8.02920519,154.09,154.05,22.3074322]
[1748662805029,1.5394,154.09,154.05,22.3074322]
[1748662805229,8.02926641,154.09,154.05,22.3074322]
[1748662805835,8.02926641,154.09,154.02,0.28432314]
[1748662806027,8.02926641,154.09,154.02,22.3074322]
[1748662806226,22.3074322,154.08,154.03,22.3074322]
[1748662806537,6.49055624,154.07,154.03,22.3074322]
[1748662808127,22.3074322,154.04,154.0,11.44]
[1748662808631,28.79967397,154.03,153.98,22.3074322]
[1748662808930,28.79967397,154.03,153.96,22.3074322]
[1748662808931,22.3074322,154.01,153.96,22.3074322]
[1748662809316,1.5394,154.02,153.98,22.3074322]
[1748662809521,1.5394,154.02,153.99,22.3074322]
[1748662809722,6.49224177,154.03,153.99,22.3074322]
[1748662810341,28.79967397,154.03,153.98,22.3074322]
[1748662810641,6.49224177,154.03,153.99,22.3074322]
[1748662810814,22.3074322,154.05,154.0,22.3074322]
[1748662811914,28.79889803,154.05,154.0,22.3074322]
[1748662812115,28.79889803,154.05,154.01,22.3074322]
[1748662812116,6.49146583,154.05,154.01,22.3074322]
[1748662812521,6.49146583,154.05,153.99,0.28432314]
[1748662812839,28.79889803,154.05,154.0,22.3074322]
[1748662814115,22.3074322,154.04,153.99,22.3074322]
[1748662814352,22.71996307,154.05,153.97,41.72432314]
[1748662814353,22.3074322,154.02,153.97,22.3074322]
[1748662814594,22.3074322,154.0,153.95,33.7474322]
[1748662815140,28.9360322,154.01,153.96,22.3074322]
[1748662815852,6.6286,154.01,153.97,22.3074322]
[1748662816017,6.49318396,154.01,153.98,22.3074322]
[1748662816924,6.49318396,154.01,153.97,22.3074322]
[1748662818841,28.80061616,154.01,153.96,22.3074322]
[1748662819533,6.49318396,154.01,153.97,22.3074322]
[1748662819852,6.49236304,154.03,154.0,22.3074322]
[1748662820533,6.49236304,154.03,153.99,22.3074322]
[1748662820738,28.79979524,154.03,153.98,22.3074322]
[1748662821052,45.03039966,154.03,153.98,22.3074322]
[1748662821258,45.03039966,154.03,153.97,22.3074322]
[1748662821641,45.03039966,154.03,153.96,67.44]
[1748662821960,45.03039966,154.03,153.98,22.3074322]
[1748662822873,6.49236304,154.03,153.98,22.3074322]
[1748662823174,6.49236304,154.03,153.99,22.3074322]
[1748662824248,22.3074322,154.02,153.97,22.3074322]
[1748662825142,22.3074322,154.01,153.96,22.3074322]
[1748662825978,22.3074322,154.01,153.95,11.44]
[1748662826271,28.80136037,153.99,153.95,11.44]
[1748662826473,22.3074322,153.98,153.93,22.3074322]
[1748662826673,28.80136037,153.99,153.94,22.3074322]
[1748662827355,28.80136037,153.99,153.91,32.63921796]
[1748662827356,22.3074322,153.98,153.93,22.3074322]
[1748662827579,45.03618081,153.99,153.94,22.3074322]
[1748662827786,28.80136037,153.99,153.94,22.3074322]
[1748662828072,6.49392817,153.99,153.95,22.3074322]
[1748662828273,1.6281,154.0,153.97,22.3074322]
[1748662828481,6.49319106,154.01,153.97,22.3074322]
[1748662828667,6.49319106,154.01,153.98,22.3074322]
[1748662829264,6.49240648,154.03,153.98,22.3074322]
[1748662831751,28.79983868,154.03,153.98,22.3074322]
[1748662832371,28.80051706,154.01,153.96,22.3074322]
[1748662832579,28.80051706,154.01,153.95,11.3]
[1748662832580,22.3074322,154.0,153.95,33.6074322]
[1748662832783,6.49308486,154.01,153.95,33.6074322]
[1748662832784,22.3074322,153.99,153.95,11.3]
[1748662833082,22.3074322,153.98,153.93,22.3074322]
[1748662833251,22.3074322,153.97,153.92,26.0]
[1748662833458,22.3074322,153.96,153.91,22.3074322]
[1748662834479,6.49561545,153.95,153.91,22.3074322]
[1748662835356,6.49561545,153.95,153.9,11.3]
[1748662835572,6.49561545,153.95,153.92,22.3074322]
[1748662835951,6.49561545,153.95,153.9,11.3]
[1748662836173,1.6281,153.97,153.93,22.3074322]
[1748662836369,1.6281,153.97,153.94,22.3074322]
[1748662836571,1.6281,153.97,153.93,22.3074322]
[1748662836774,8.12300161,153.97,153.93,22.3074322]
[1748662836976,30.43043381,153.97,153.92,22.3074322]
[1748662839471,30.43043381,153.97,153.9,11.3]
[1748662839688,30.43043381,153.97,153.92,22.3074322]
[1748662840483,22.3074322,153.94,153.9,11.3]
[1748662840684,14.22760161,153.97,153.84,102.36588761]
[1748662840685,22.3074322,153.93,153.87,26.0]
[1748662841098,22.3074322,153.93,153.88,22.3074322]
[1748662841973,28.80423888,153.93,153.88,22.3074322]
[1748662843194,28.80336752,153.95,153.9,22.3074322]
[1748662843572,6.49593532,153.95,153.9,22.3074322]
[1748662843777,6.49593532,153.95,153.91,22.3074322]
[1748662844490,28.80336752,153.95,153.9,22.3074322]
[1748662848292,138.5668,153.96,153.93,22.3074322]
[1748662850092,145.06203524,153.96,153.93,22.3074322]
[1748662850293,145.06203524,153.96,153.92,22.3074322]
[1748662854519,138.5668,153.96,153.92,22.3074322]
[1748662855819,138.5668,153.96,153.93,22.3074322]
[1748662856706,138.5668,153.96,153.92,22.3074322]
[1748662856707,145.06199598,153.96,153.92,22.3074322]
[1748662858201,167.36942818,153.96,153.91,22.3074322]
[1748662858402,167.36942818,153.96,153.9,33.5874322]
[1748662858403,22.3074322,153.95,153.9,33.5874322]
[1748662859010,22.3074322,153.95,153.9,40.08500689]
[1748662859301,167.36942818,153.96,153.9,40.08500689]
[1748662860828,167.36942818,153.96,153.91,22.3074322]
[1748662861132,167.36942818,153.96,153.9,40.08500689]
[1748662861309,167.36942818,153.96,153.9,33.5874322]
[1748662861496,22.3074322,153.95,153.9,33.5874322]
[1748662861703,22.3074322,153.91,153.85,22.3074322]
[1748662861919,22.3074322,153.9,153.84,48.3074322]
[1748662862622,23.8291322,153.89,153.83,11.28]
[1748662862821,23.8291322,153.89,153.84,22.3074322]
[1748662863013,41.44,153.91,153.83,11.28]
[1748662863014,41.44,153.91,153.86,22.3074322]
[1748662863314,28.80438344,153.92,153.87,22.3074322]
[1748662863717,36.68811462,153.93,153.88,22.3074322]
[1748662864219,22.3074322,153.91,153.86,22.3074322]
[1748662864527,22.3074322,153.92,153.87,22.3074322]
[1748662864920,6.49730361,153.91,153.87,22.3074322]
[1748662865231,6.49730361,153.91,153.85,26.0]
[1748662865403,6.49730361,153.91,153.87,22.3074322]
[1748662867427,28.80439172,153.92,153.87,22.3074322]
[1748662867728,6.49695952,153.92,153.87,22.3074322]
[1748662868439,6.49695952,153.92,153.85,26.0]
[1748662868736,22.3074322,153.9,153.85,22.3074322]
[1748662868937,28.80439172,153.92,153.87,22.3074322]
[1748662870139,138.5668,153.94,153.87,22.3074322]
[1748662870140,138.5668,153.94,153.91,22.3074322]
[1748662870343,6.49567026,153.95,153.92,22.3074322]
[1748662871031,6.49567026,153.95,153.91,22.3074322]
[1748662871746,6.49567026,153.95,153.9,22.3074322]
[1748662871933,45.0421411,153.95,153.89,22.3074322]
[1748662872238,45.0421411,153.95,153.9,22.3074322]
[1748662872820,22.3074322,153.93,153.87,48.3074322]
[1748662873021,22.3074322,153.93,153.88,22.3074322]
[1748662873627,22.3074322,153.91,153.84,0.28432314]
[1748662873823,22.3074322,153.91,153.86,22.3074322]
[1748662874032,28.80431369,153.92,153.86,22.3074322]
[1748662874439,28.80431369,153.92,153.82,30.5868554]
[1748662874440,22.3074322,153.9,153.85,22.3074322]
[1748662874619,22.3074322,153.9,153.84,22.3074322]
[1748662874824,22.3074322,153.9,153.85,22.3074322]
[1748662875026,22.3074322,153.89,153.84,22.3074322]
[1748662875225,7.8914,153.91,153.83,33.5874322]
[1748662875226,22.3074322,153.88,153.83,33.5874322]
[1748662875649,6.49899265,153.87,153.83,11.28]
[1748662876055,6.49852101,153.89,153.85,22.3074322]
[1748662876230,6.49852101,153.89,153.86,22.3074322]
[1748662876631,138.5668,153.9,153.86,22.3074322]
[1748662876827,138.5668,153.9,153.88,22.3074322]
[1748662877027,1.6501,153.91,153.88,22.3074322]
[1748662877250,8.14744967,153.91,153.87,22.3074322]
[1748662878357,1.6501,153.91,153.88,22.3074322]
[1748662878553,8.14747884,153.91,153.87,22.3074322]
[1748662879051,1.6501,153.91,153.88,22.3074322]
[1748662879251,8.14745126,153.91,153.88,22.3074322]
[1748662879561,8.14745126,153.91,153.87,22.3074322]
[1748662879861,6.49814802,153.89,153.85,22.3074322]
[1748662880231,28.80523634,153.9,153.85,22.3074322]
[1748662880447,8.14750024,153.91,153.86,22.3074322]
[1748662880856,30.45493244,153.91,153.86,22.3074322]
[1748662881058,22.3074322,153.9,153.83,85.48486939]
[1748662881255,22.3074322,153.89,153.84,22.3074322]
[1748662881457,8.14750024,153.91,153.83,85.20064274]
[1748662881458,22.3074322,153.9,153.83,85.20064274]
[1748662881763,22.3074322,153.9,153.84,22.3074322]
[1748662881764,6.49814802,153.89,153.84,22.3074322]
[1748662881956,6.49814802,153.89,153.85,22.3074322]
[1748662882871,6.49814802,153.89,153.83,43.78057395]
[1748662883179,6.49814802,153.89,153.83,37.28]
[1748662883341,22.3074322,153.88,153.83,59.5874322]
[1748662883543,22.3074322,153.88,153.83,33.5874322]
[1748662884139,6.4247,153.89,153.83,17.78067339]
[1748662884343,6.4247,153.89,153.85,22.3074322]
[1748662884548,12.92289317,153.89,153.85,22.3074322]
[1748662884767,12.92289317,153.89,153.84,22.3074322]
[1748662885139,35.23032537,153.89,153.84,22.3074322]
[1748662885355,35.23032537,153.89,153.83,40.08810559]
[1748662885985,35.23032537,153.89,153.84,22.3074322]
[1748662887642,6.4247,153.89,153.84,22.3074322]
[1748662888468,35.23031615,153.89,153.83,11.28]
[1748662888642,35.23031615,153.89,153.84,22.3074322]
[1748662890683,6.4247,153.89,153.85,22.3074322]
[1748662891189,12.92289795,153.89,153.85,22.3074322]
[1748662891683,35.23033015,153.89,153.84,22.3074322]
[1748662892475,35.23033015,153.89,153.83,17.78057367]
[1748662892476,12.92289795,153.89,153.85,22.3074322]
[1748662893891,35.23033015,153.89,153.84,22.3074322]
[1748662894690,22.3074322,153.88,153.83,33.5874322]
[1748662895369,22.3074322,153.84,153.77,22.3074322]
[1748662895565,22.3074322,153.83,153.77,48.3074322]
[1748662895763,22.3074322,153.83,153.78,22.59175534]
[1748662895959,28.8082358,153.83,153.78,22.3074322]
[1748662896470,28.8082358,153.83,153.78,0.28432314]
[1748662898161,22.3074322,153.82,153.77,48.3074322]
[1748662898892,6.5008036,153.83,153.75,59.5874322]
[1748662898893,22.3074322,153.8,153.75,59.5874322]
[1748662899095,22.3074322,153.8,153.75,33.5874322]
[1748662899400,22.3074322,153.8,153.75,59.5874322]
[1748662899607,23.9086322,153.81,153.76,22.3074322]
[1748662900166,22.3074322,153.8,153.75,59.5874322]
[1748662900390,28.809415,153.8,153.75,59.5874322]
[1748662901023,8.10284867,153.81,153.75,66.09140178]
[1748662901165,1.6012,153.81,153.77,22.3074322]
[1748662901584,1.6012,153.81,153.78,22.3074322]
[1748662901967,23.9086322,153.81,153.77,22.3074322]
[1748662902172,23.9086322,153.81,153.76,41.2414042]
[1748662902573,23.9086322,153.81,153.76,47.74494207]
[1748662906485,30.41020577,153.81,153.76,47.74494207]
[1748662907583,23.9086322,153.81,153.76,47.74494207]
[1748662908103,30.41022552,153.81,153.76,41.2414042]
[1748662908287,30.41022552,153.81,153.76,22.59175534]
[1748662908490,22.3074322,153.79,153.75,37.28]
[1748662909205,8.10279332,153.81,153.75,66.09146577]
[1748662909406,22.3074322,153.8,153.75,66.09146577]
[1748662909698,1.6012,153.81,153.76,6.78755984]
[1748662909903,1.6012,153.81,153.77,22.3074322]
[1748662910315,138.5668,153.82,153.78,22.3074322]
[1748662910609,35.0243774,153.83,153.77,41.2414042]
[1748662910913,22.3074322,153.82,153.77,41.2414042]
[1748662911483,22.3074322,153.82,153.77,18.933972]
[1748662911992,28.80873804,153.82,153.77,18.933972]
[1748662912395,22.3074322,153.81,153.77,0.28432314]
[1748662912614,12.71701283,153.83,153.77,22.59175534]
[1748662912794,35.02444503,153.83,153.77,22.59175534]
[1748662913131,22.3074322,153.82,153.77,0.28432314]
[1748662913417,22.3074322,153.82,153.77,22.59175534]
[1748662913616,22.3074322,153.81,153.76,63.7274322]
[1748662913819,22.3074322,153.8,153.76,41.42]
[1748662914194,22.3074322,153.8,153.75,11.28]
[1748662914396,22.3074322,153.79,153.75,37.28]
[1748662915490,28.81014215,153.79,153.75,37.28]
[1748662917394,30.36427121,153.8,153.75,59.5874322]
[1748662918522,22.3074322,153.79,153.75,37.28]
[1748662918698,30.36427121,153.8,153.75,59.5874322]
[1748662920006,8.05683901,153.8,153.75,59.5874322]
[1748662920212,22.3074322,153.79,153.75,37.28]
[1748662920408,1.5548,153.8,153.77,22.3074322]
[1748662920608,138.5668,153.82,153.77,28.81055275]
[1748662920830,22.3074322,153.81,153.76,29.09526463]
[1748662921234,22.3074322,153.81,153.76,22.59175534]
[1748662921543,22.3074322,153.8,153.76,0.28432314]
[1748662921709,22.3074322,153.8,153.75,59.5874322]
[1748662921912,22.3074322,153.79,153.75,37.28]
[1748662922113,145.06804594,153.82,153.7,16.26463192]
[1748662922114,22.3074322,153.76,153.71,28.81289861]
[1748662922336,22.3074322,153.75,153.72,26.0]
[1748662922837,28.81076275,153.77,153.72,48.3074322]
[1748662923133,22.3074322,153.77,153.72,54.81268822]
[1748662923334,30.43296295,153.78,153.72,54.81268822]
[1748662923641,22.3074322,153.76,153.72,26.0]
[1748662924317,22.3074322,153.77,153.72,48.3074322]
[1748662924640,23.9300322,153.78,153.73,22.3074322]
[1748662924804,1.6226,153.78,153.75,22.3074322]
[1748662925442,70.22906016,153.81,153.75,22.3074322]
[1748662925747,28.80906016,153.81,153.75,22.3074322]
[1748662926105,28.80906016,153.81,153.76,22.3074322]
[1748662926509,168.99802368,153.82,153.76,22.3074322]
[1748662926734,168.99802368,153.82,153.77,22.3074322]